[Event "*** Titled Tuesday Blitz"]
[Site "Chess.com"]
[Date "2020.05.05"]
[Round "6"]
[White "aakankshachess"]
[Black "Biranidun"]
[Result "1-0"]
[WhiteElo "2514"]
[BlackElo "2692"]
[TimeControl "180+1"]
[EndTime "11:06:07 PDT"]
[Termination "aakankshachess won on time"]

1. e4 {[%clk 0:03:00.9]} 1... c5 {[%clk 0:02:59.4]} 2. Nf3 {[%clk 0:03:00.2]}
2... d6 {[%clk 0:02:59.1]} 3. Bb5+ {[%clk 0:03:00.3]} 3... Nd7 {[%clk
0:02:58.9]} 4. O-O {[%clk 0:02:59.9]} 4... a6 {[%clk 0:02:57.1]} 5. Bxd7+ {[%clk
0:02:59.4]} 5... Bxd7 {[%clk 0:02:58]} 6. d4 {[%clk 0:02:59.6]} 6... cxd4 {[%clk
0:02:57.8]} 7. Qxd4 {[%clk 0:03:00.2]} 7... e5 {[%clk 0:02:57.5]} 8. Qd3 {[%clk
0:02:59.8]} 8... Rc8 {[%clk 0:02:58]} 9. c4 {[%clk 0:02:59.8]} 9... Qc7 {[%clk
0:02:56.6]} 10. b3 {[%clk 0:02:59.4]} 10... b5 {[%clk 0:02:57.2]} 11. Na3 {[%clk
0:02:59]} 11... Qb7 {[%clk 0:02:54.5]} 12. cxb5 {[%clk 0:02:58.4]} 12... axb5
{[%clk 0:02:51.7]} 13. Bb2 {[%clk 0:02:58.7]} 13... Nf6 {[%clk 0:02:49.1]} 14.
Rfe1 {[%clk 0:02:58.1]} 14... Be7 {[%clk 0:02:38.2]} 15. h3 {[%clk 0:02:55.4]}
15... O-O {[%clk 0:02:37.7]} 16. Nd2 {[%clk 0:02:55.2]} 16... Bc6 {[%clk
0:02:26.7]} 17. Nc2 {[%clk 0:02:52.5]} 17... b4 {[%clk 0:02:20.3]} 18. Rac1
{[%clk 0:02:43.6]} 18... Rc7 {[%clk 0:01:52.2]} 19. f3 {[%clk 0:02:42.5]} 19...
Ra8 {[%clk 0:01:51.1]} 20. Nc4 {[%clk 0:02:31.4]} 20... Rxa2 {[%clk 0:01:42.7]}
21. Ra1 {[%clk 0:02:27.9]} 21... Rxa1 {[%clk 0:01:20.5]} 22. Rxa1 {[%clk
0:02:28.8]} 22... Bb5 {[%clk 0:01:21.3]} 23. N2e3 {[%clk 0:02:27.5]} 23... g6
{[%clk 0:01:03.7]} 24. Qd2 {[%clk 0:02:27.2]} 24... Qc6 {[%clk 0:00:56.6]} 25.
Qxb4 {[%clk 0:02:24.3]} 25... d5 {[%clk 0:00:43.4]} 26. exd5 {[%clk 0:02:21.1]}
26... Nxd5 {[%clk 0:00:43]} 27. Qe1 {[%clk 0:02:13.1]} 27... Bc5 {[%clk
0:00:36.2]} 28. Kh1 {[%clk 0:02:12.9]} 28... Nxe3 {[%clk 0:00:30.9]} 29. Nxe3
{[%clk 0:02:12.9]} 29... f6 {[%clk 0:00:18.6]} 30. Rc1 {[%clk 0:02:07.8]} 30...
Qe6 {[%clk 0:00:16.9]} 31. Qa5 {[%clk 0:02:02.9]} 31... Qb6 {[%clk 0:00:11.4]}
32. Qa8+ {[%clk 0:01:59.9]} 32... Kg7 {[%clk 0:00:07.5]} 33. Nd5 {[%clk
0:01:59.9]} 33... Qc6 {[%clk 0:00:02.9]} 34. Nxc7 {[%clk 0:01:48.2]} 34... Qxc7
{[%clk 0:00:03]} 35. Qd5 {[%clk 0:01:47.5]} 1-0

[Event "*** Titled Tuesday Blitz"]
[Site "Chess.com"]
[Date "2020.05.05"]
[Round "6"]
[White "Sashadav97"]
[Black "turayev_shahruh17"]
[Result "1-0"]
[WhiteElo "2762"]
[BlackElo "2548"]
[TimeControl "180+1"]
[EndTime "11:06:09 PDT"]
[Termination "Sashadav97 won by checkmate"]

1. d4 {[%clk 0:03:00.9]} 1... d5 {[%clk 0:02:55.4]} 2. c4 {[%clk 0:03:01]} 2...
e6 {[%clk 0:02:54.2]} 3. Nc3 {[%clk 0:02:52.2]} 3... a6 {[%clk 0:02:54.3]} 4.
cxd5 {[%clk 0:02:49]} 4... exd5 {[%clk 0:02:50.6]} 5. Bf4 {[%clk 0:02:49.3]}
5... c6 {[%clk 0:02:37.7]} 6. e3 {[%clk 0:02:48.3]} 6... Bd6 {[%clk 0:02:38.2]}
7. Qf3 {[%clk 0:02:47.9]} 7... Bxf4 {[%clk 0:02:33.5]} 8. Qxf4 {[%clk
0:02:45.4]} 8... Qf6 {[%clk 0:02:33.8]} 9. Qc7 {[%clk 0:02:37.4]} 9... Qd8
{[%clk 0:02:24.7]} 10. Qe5+ {[%clk 0:02:34.3]} 10... Ne7 {[%clk 0:02:17.2]} 11.
Qxg7 {[%clk 0:02:33.6]} 11... Rg8 {[%clk 0:02:15.9]} 12. Qxh7 {[%clk 0:02:33.6]}
12... Bf5 {[%clk 0:02:16.3]} 13. Qh5 {[%clk 0:02:13.6]} 13... Qb6 {[%clk
0:02:15.2]} 14. Qe2 {[%clk 0:02:12.1]} 14... Nd7 {[%clk 0:02:14.1]} 15. Qd2
{[%clk 0:02:06.4]} 15... c5 {[%clk 0:02:07.4]} 16. Nge2 {[%clk 0:02:06]} 16...
c4 {[%clk 0:01:51.4]} 17. Ng3 {[%clk 0:02:04]} 17... Be6 {[%clk 0:01:46.2]} 18.
Be2 {[%clk 0:02:01.9]} 18... O-O-O {[%clk 0:01:41]} 19. b3 {[%clk 0:02:00]}
19... Kb8 {[%clk 0:01:37]} 20. bxc4 {[%clk 0:01:57.8]} 20... dxc4 {[%clk
0:01:37.9]} 21. Rb1 {[%clk 0:01:58.2]} 21... Qa5 {[%clk 0:01:37.7]} 22. Bf3
{[%clk 0:01:58.2]} 22... Nb6 {[%clk 0:01:31.5]} 23. O-O {[%clk 0:01:45.1]} 23...
Bd5 {[%clk 0:01:23.8]} 24. e4 {[%clk 0:01:41.9]} 24... Bc6 {[%clk 0:01:17.1]}
25. d5 {[%clk 0:01:41.4]} 25... f5 {[%clk 0:01:10.3]} 26. Qf4+ {[%clk
0:01:36.6]} 26... Ka7 {[%clk 0:01:05.8]} 27. dxc6 {[%clk 0:01:35.2]} 27... Qxc3
{[%clk 0:01:03.3]} 28. Qc7 {[%clk 0:01:18.2]} 28... Nxc6 {[%clk 0:00:31.9]} 29.
Qxb6+ {[%clk 0:01:16.6]} 29... Ka8 {[%clk 0:00:31.1]} 30. Qxb7# {[%clk
0:01:17.5]} 1-0

[Event "*** Titled Tuesday Blitz"]
[Site "Chess.com"]
[Date "2020.05.05"]
[Round "6"]
[White "AleksanderHnydiuk"]
[Black "cuprichanin"]
[Result "1-0"]
[WhiteElo "2561"]
[BlackElo "2332"]
[TimeControl "180+1"]
[EndTime "11:06:10 PDT"]
[Termination "AleksanderHnydiuk won by checkmate"]

1. Nf3 {[%clk 0:03:00.9]} 1... f5 {[%clk 0:02:59]} 2. g3 {[%clk 0:02:59.7]} 2...
Nc6 {[%clk 0:02:53]} 3. d4 {[%clk 0:02:58.7]} 3... d5 {[%clk 0:02:51.9]} 4. Bg2
{[%clk 0:02:57.5]} 4... Nf6 {[%clk 0:02:51.8]} 5. O-O {[%clk 0:02:56.6]} 5... e6
{[%clk 0:02:50.6]} 6. c4 {[%clk 0:02:55]} 6... h5 {[%clk 0:02:48]} 7. Bg5 {[%clk
0:02:53.2]} 7... Be7 {[%clk 0:02:46.1]} 8. Nc3 {[%clk 0:02:51.2]} 8... Ne4
{[%clk 0:02:39.7]} 9. Bxe7 {[%clk 0:02:50.6]} 9... Qxe7 {[%clk 0:02:39.1]} 10.
cxd5 {[%clk 0:02:48.5]} 10... Nxc3 {[%clk 0:02:38.5]} 11. bxc3 {[%clk
0:02:48.7]} 11... exd5 {[%clk 0:02:38.6]} 12. Qb3 {[%clk 0:02:40.1]} 12... Qf7
{[%clk 0:02:05.4]} 13. Ng5 {[%clk 0:02:21.4]} 13... Qf6 {[%clk 0:02:02.3]} 14.
h4 {[%clk 0:02:20.6]} 14... Ne7 {[%clk 0:01:30.5]} 15. Bxd5 {[%clk 0:02:19.7]}
15... Nxd5 {[%clk 0:01:29.8]} 16. Qxd5 {[%clk 0:02:20.6]} 16... Bd7 {[%clk
0:01:29.3]} 17. Qxb7 {[%clk 0:02:10.1]} 17... Bc6 {[%clk 0:01:28.5]} 18. Qxc7
{[%clk 0:02:09.7]} 18... O-O {[%clk 0:01:27.8]} 19. Qe5 {[%clk 0:02:00.7]} 19...
Qxe5 {[%clk 0:01:23.8]} 20. dxe5 {[%clk 0:02:01.6]} 20... f4 {[%clk 0:01:23.6]}
21. Ne6 {[%clk 0:01:56.9]} 21... Rf5 {[%clk 0:01:16.9]} 22. Nd4 {[%clk
0:01:52.7]} 22... Rxe5 {[%clk 0:01:11]} 23. Nxc6 {[%clk 0:01:51.7]} 23... Rxe2
{[%clk 0:01:11]} 24. Rfe1 {[%clk 0:01:50.8]} 24... Rc2 {[%clk 0:01:09.6]} 25.
Ne7+ {[%clk 0:01:48.2]} 25... Kh7 {[%clk 0:01:08.7]} 26. Re5 {[%clk 0:01:44.5]}
26... g6 {[%clk 0:01:01.9]} 27. Nd5 {[%clk 0:01:44.3]} 27... fxg3 {[%clk
0:00:59.9]} 28. fxg3 {[%clk 0:01:45.2]} 28... Rb8 {[%clk 0:00:54.9]} 29. Re7+
{[%clk 0:01:05.9]} 29... Kh6 {[%clk 0:00:53.9]} 30. Nf6 {[%clk 0:01:05.8]} 30...
g5 {[%clk 0:00:53.6]} 31. Rf1 {[%clk 0:00:59.2]} 31... Rbb2 {[%clk 0:00:45.6]}
32. Ng8+ {[%clk 0:00:58.2]} 32... Kg6 {[%clk 0:00:43]} 33. Rf6# {[%clk
0:00:57.8]} 1-0

[Event "*** Titled Tuesday Blitz"]
[Site "Chess.com"]
[Date "2020.05.05"]
[Round "6"]
[White "Quaternitychess"]
[Black "Pechen_Yeltsina"]
[Result "1-0"]
[WhiteElo "2478"]
[BlackElo "2716"]
[TimeControl "180+1"]
[EndTime "11:06:12 PDT"]
[Termination "Quaternitychess won by checkmate"]

1. e4 {[%clk 0:03:00.9]} 1... g6 {[%clk 0:02:59.9]} 2. d4 {[%clk 0:02:59.9]}
2... Bg7 {[%clk 0:03:00.4]} 3. h4 {[%clk 0:03:00.1]} 3... h6 {[%clk 0:03:00.4]}
4. Nc3 {[%clk 0:02:59]} 4... d6 {[%clk 0:02:59.9]} 5. f4 {[%clk 0:02:59.1]} 5...
Nd7 {[%clk 0:02:52.9]} 6. Nf3 {[%clk 0:02:57.1]} 6... c5 {[%clk 0:02:53]} 7. Be3
{[%clk 0:02:52.4]} 7... b6 {[%clk 0:02:45.8]} 8. h5 {[%clk 0:02:47.3]} 8... gxh5
{[%clk 0:02:44]} 9. Bc4 {[%clk 0:02:45.7]} 9... e6 {[%clk 0:02:40.4]} 10. Nb5
{[%clk 0:02:41.7]} 10... Ndf6 {[%clk 0:02:32.5]} 11. e5 {[%clk 0:02:41.2]} 11...
dxe5 {[%clk 0:02:29.9]} 12. dxe5 {[%clk 0:02:36.1]} 12... Ng4 {[%clk 0:02:30.4]}
13. Qe2 {[%clk 0:02:30.1]} 13... Ne7 {[%clk 0:02:21.8]} 14. Rd1 {[%clk
0:02:28.6]} 14... Bd7 {[%clk 0:02:20.8]} 15. Nd6+ {[%clk 0:02:26.7]} 15... Kf8
{[%clk 0:02:21.1]} 16. Rxh5 {[%clk 0:02:24.1]} 16... Nc8 {[%clk 0:02:15.7]} 17.
Nxf7 {[%clk 0:02:19.7]} 17... Kxf7 {[%clk 0:02:09.4]} 18. f5 {[%clk 0:02:19.9]}
18... Qe8 {[%clk 0:02:06.4]} 19. Rxd7+ {[%clk 0:02:18.9]} 19... Kf8 {[%clk
0:02:04.2]} 20. Nh4 {[%clk 0:01:27]} 20... Qxh5 {[%clk 0:01:54.6]} 21. Ng6+
{[%clk 0:01:26.6]} 21... Ke8 {[%clk 0:01:54.9]} 22. Qf3 {[%clk 0:01:07.9]} 22...
Qxf5 {[%clk 0:01:32.3]} 23. Qc6 {[%clk 0:01:05.8]} 23... Nxe5 {[%clk 0:01:17.9]}
24. Nxe5 {[%clk 0:01:04.1]} 24... Bxe5 {[%clk 0:01:18.1]} 25. Bxe6 {[%clk
0:00:45.3]} 25... Bg3+ {[%clk 0:00:50.3]} 26. Kd2 {[%clk 0:00:44.3]} 26... Ne7
{[%clk 0:00:46.3]} 27. Rd8+ {[%clk 0:00:39.7]} 27... Kxd8 {[%clk 0:00:45.1]} 28.
Qd7# {[%clk 0:00:40.2]} 1-0

[Event "*** Titled Tuesday Blitz"]
[Site "Chess.com"]
[Date "2020.05.05"]
[Round "6"]
[White "Marty435"]
[Black "SummertimeFun"]
[Result "1-0"]
[WhiteElo "2519"]
[BlackElo "2189"]
[TimeControl "180+1"]
[EndTime "11:06:13 PDT"]
[Termination "Marty435 won on time"]

1. b3 {[%clk 0:03:00.9]} 1... d5 {[%clk 0:02:57.4]} 2. Bb2 {[%clk 0:03:01.5]}
2... Nf6 {[%clk 0:02:56.8]} 3. e3 {[%clk 0:03:02.2]} 3... Bf5 {[%clk 0:02:56.1]}
4. Nf3 {[%clk 0:03:01.1]} 4... e6 {[%clk 0:02:56.4]} 5. c4 {[%clk 0:03:00.7]}
5... c5 {[%clk 0:02:55.4]} 6. Nc3 {[%clk 0:02:59]} 6... Nc6 {[%clk 0:02:55.3]}
7. cxd5 {[%clk 0:02:54.9]} 7... exd5 {[%clk 0:02:56.2]} 8. d4 {[%clk 0:02:54.9]}
8... cxd4 {[%clk 0:02:54.1]} 9. Nxd4 {[%clk 0:02:55.8]} 9... Nxd4 {[%clk
0:02:54.3]} 10. Qxd4 {[%clk 0:02:56.5]} 10... Be7 {[%clk 0:02:54.1]} 11. Bb5+
{[%clk 0:02:55.6]} 11... Bd7 {[%clk 0:02:51.3]} 12. Bxd7+ {[%clk 0:02:55.8]}
12... Qxd7 {[%clk 0:02:52.2]} 13. Rd1 {[%clk 0:02:53.8]} 13... Rd8 {[%clk
0:02:50.6]} 14. O-O {[%clk 0:02:53.2]} 14... O-O {[%clk 0:02:49.1]} 15. Rd3
{[%clk 0:02:47.1]} 15... Bd6 {[%clk 0:02:39.9]} 16. Rfd1 {[%clk 0:02:47.4]}
16... Qf5 {[%clk 0:02:30.9]} 17. h3 {[%clk 0:02:38.7]} 17... Be5 {[%clk
0:02:23.3]} 18. Qxa7 {[%clk 0:02:35.4]} 18... Bxc3 {[%clk 0:02:18.8]} 19. Bxc3
{[%clk 0:02:34.7]} 19... Ne4 {[%clk 0:02:19]} 20. Be1 {[%clk 0:02:34]} 20... Ng5
{[%clk 0:02:03.3]} 21. Qxb7 {[%clk 0:02:26.4]} 21... Qg6 {[%clk 0:01:54.5]} 22.
Kh1 {[%clk 0:02:09.7]} 22... Qe4 {[%clk 0:01:42.1]} 23. Rd4 {[%clk 0:01:41.2]}
23... Qe6 {[%clk 0:01:33]} 24. Rxd5 {[%clk 0:01:33]} 24... Rb8 {[%clk
0:01:31.6]} 25. Qxb8 {[%clk 0:01:27.2]} 25... Nxh3 {[%clk 0:01:26]} 26. Rd8
{[%clk 0:01:19.5]} 26... Nxf2+ {[%clk 0:01:18.6]} 27. Bxf2 {[%clk 0:01:19.3]}
1-0

[Event "*** Titled Tuesday Blitz"]
[Site "Chess.com"]
[Date "2020.05.05"]
[Round "6"]
[White "HarutyunianTigranK"]
[Black "Oleksandr_Bortnyk"]
[Result "0-1"]
[WhiteElo "2710"]
[BlackElo "2993"]
[TimeControl "180+1"]
[EndTime "11:06:17 PDT"]
[Termination "Oleksandr_Bortnyk won by resignation"]

1. c4 {[%clk 0:03:00.7]} 1... d6 {[%clk 0:02:57.3]} 2. Nf3 {[%clk 0:02:58.8]}
2... e5 {[%clk 0:02:47.6]} 3. Nc3 {[%clk 0:02:56.8]} 3... f5 {[%clk 0:02:47.6]}
4. g3 {[%clk 0:02:53.1]} 4... Nf6 {[%clk 0:02:46.5]} 5. d4 {[%clk 0:02:51.8]}
5... e4 {[%clk 0:02:46.5]} 6. Nh4 {[%clk 0:02:51.2]} 6... Be7 {[%clk 0:02:40.2]}
7. Bg5 {[%clk 0:02:50.5]} 7... O-O {[%clk 0:02:39.4]} 8. Ng2 {[%clk 0:02:46.1]}
8... Be6 {[%clk 0:02:35.3]} 9. e3 {[%clk 0:02:45.3]} 9... c6 {[%clk 0:02:27.8]}
10. Bxf6 {[%clk 0:02:43.2]} 10... Bxf6 {[%clk 0:02:27.9]} 11. h4 {[%clk
0:02:43.7]} 11... c5 {[%clk 0:02:21.3]} 12. Nf4 {[%clk 0:02:43.3]} 12... Bf7
{[%clk 0:02:21.4]} 13. Ncd5 {[%clk 0:02:27.6]} 13... cxd4 {[%clk 0:02:15.8]} 14.
Nxf6+ {[%clk 0:02:26.6]} 14... Qxf6 {[%clk 0:02:11.6]} 15. Qxd4 {[%clk
0:02:24.9]} 15... Qxd4 {[%clk 0:02:11.7]} 16. exd4 {[%clk 0:02:25.1]} 16... Nc6
{[%clk 0:02:12.6]} 17. O-O-O {[%clk 0:02:24.2]} 17... Rac8 {[%clk 0:02:04.4]}
18. b3 {[%clk 0:02:23.1]} 18... d5 {[%clk 0:01:26.7]} 19. Kb2 {[%clk 0:02:01.5]}
19... dxc4 {[%clk 0:01:25.5]} 20. Bxc4 {[%clk 0:02:01]} 20... Bxc4 {[%clk
0:01:24.3]} 21. bxc4 {[%clk 0:02:01.1]} 21... Rfd8 {[%clk 0:01:25.2]} 22. Ne6
{[%clk 0:01:52.3]} 22... Rd6 {[%clk 0:01:25]} 23. d5 {[%clk 0:01:52.2]} 23...
Ne5 {[%clk 0:01:25.4]} 24. c5 {[%clk 0:01:51.8]} 24... Rd7 {[%clk 0:01:16.9]}
25. Kc3 {[%clk 0:01:35.7]} 25... Nd3 {[%clk 0:01:17]} 26. Rxd3 {[%clk
0:01:15.6]} 26... exd3 {[%clk 0:01:17.9]} 27. Kd4 {[%clk 0:01:11]} 27... b6
{[%clk 0:01:16.9]} 28. cxb6 {[%clk 0:01:10.5]} 28... axb6 {[%clk 0:01:15.8]} 29.
Rd1 {[%clk 0:01:10.4]} 29... Ra8 {[%clk 0:01:11]} 30. Rxd3 {[%clk 0:01:09.1]}
30... Rxa2 {[%clk 0:01:10]} 31. f4 {[%clk 0:01:00.5]} 31... Re2 {[%clk
0:01:04.6]} 32. Rd1 {[%clk 0:00:39.1]} 32... Rxe6 {[%clk 0:01:03.7]} 0-1

[Event "*** Titled Tuesday Blitz"]
[Site "Chess.com"]
[Date "2020.05.05"]
[Round "6"]
[White "A-Fier"]
[Black "ALeks_Ivlev"]
[Result "0-1"]
[WhiteElo "2774"]
[BlackElo "2596"]
[TimeControl "180+1"]
[EndTime "11:06:23 PDT"]
[Termination "ALeks_Ivlev won by resignation"]

1. e4 {[%clk 0:03:00.9]} 1... c5 {[%clk 0:02:59.4]} 2. Nf3 {[%clk 0:03:00.7]}
2... d6 {[%clk 0:02:59.8]} 3. d4 {[%clk 0:03:01.4]} 3... cxd4 {[%clk 0:03:00.7]}
4. Nxd4 {[%clk 0:03:02]} 4... Nf6 {[%clk 0:03:01.3]} 5. Nc3 {[%clk 0:03:02.6]}
5... g6 {[%clk 0:03:01.6]} 6. Be3 {[%clk 0:03:02.7]} 6... Bg7 {[%clk 0:03:01.2]}
7. f3 {[%clk 0:03:03.3]} 7... a6 {[%clk 0:03:01.6]} 8. Qd2 {[%clk 0:02:58.4]}
8... h5 {[%clk 0:02:59.9]} 9. Be2 {[%clk 0:02:57]} 9... b5 {[%clk 0:02:54.9]}
10. O-O {[%clk 0:02:56.8]} 10... Bb7 {[%clk 0:02:54.6]} 11. a3 {[%clk
0:02:55.3]} 11... O-O {[%clk 0:02:53.4]} 12. Bd3 {[%clk 0:02:53]} 12... Nbd7
{[%clk 0:02:53.1]} 13. h3 {[%clk 0:02:52.3]} 13... Rc8 {[%clk 0:02:51]} 14. f4
{[%clk 0:02:52.4]} 14... Rxc3 {[%clk 0:02:44]} 15. Qxc3 {[%clk 0:02:53.3]} 15...
Nxe4 {[%clk 0:02:43]} 16. Qe1 {[%clk 0:02:53.3]} 16... Ndc5 {[%clk 0:02:29.3]}
17. f5 {[%clk 0:02:50.6]} 17... e5 {[%clk 0:02:18.1]} 18. fxe6 {[%clk
0:02:40.1]} 18... fxe6 {[%clk 0:02:16.7]} 19. Rxf8+ {[%clk 0:02:25.5]} 19...
Qxf8 {[%clk 0:02:14.8]} 20. Bf1 {[%clk 0:02:26.1]} 20... Qe7 {[%clk 0:02:05.5]}
21. Rd1 {[%clk 0:02:23.6]} 21... Be5 {[%clk 0:01:53.1]} 22. b4 {[%clk
0:02:09.7]} 22... Bg3 {[%clk 0:01:29.7]} 23. Qe2 {[%clk 0:02:08.7]} 23... Nc3
{[%clk 0:01:27.8]} 24. Qd2 {[%clk 0:02:06.8]} 24... N5e4 {[%clk 0:01:26.6]} 25.
Qd3 {[%clk 0:02:04.8]} 25... Nxd1 {[%clk 0:01:19.5]} 26. Qxd1 {[%clk 0:02:05.7]}
26... Qf6 {[%clk 0:01:18.3]} 27. Nf3 {[%clk 0:02:05.1]} 27... Bd5 {[%clk
0:01:13.3]} 28. Bd4 {[%clk 0:02:02.9]} 28... Qf4 {[%clk 0:00:57.7]} 29. Bd3
{[%clk 0:01:59]} 29... g5 {[%clk 0:00:48.7]} 30. Qe2 {[%clk 0:01:41.4]} 30... g4
{[%clk 0:00:41.3]} 31. Be3 {[%clk 0:01:40.1]} 31... gxf3 {[%clk 0:00:24.7]} 32.
gxf3 {[%clk 0:01:36.6]} 32... Nc3 {[%clk 0:00:14.1]} 33. Bh7+ {[%clk 0:01:23.6]}
33... Kxh7 {[%clk 0:00:13.2]} 34. Qd3+ {[%clk 0:01:24]} 34... Qf5 {[%clk
0:00:13.8]} 35. Qxc3 {[%clk 0:01:24.4]} 35... Qxf3 {[%clk 0:00:13.9]} 36. Qc7+
{[%clk 0:01:24.3]} 36... Kg6 {[%clk 0:00:14]} 0-1

[Event "*** Titled Tuesday Blitz"]
[Site "Chess.com"]
[Date "2020.05.05"]
[Round "6"]
[White "Caisachess"]
[Black "Ashedu66"]
[Result "1-0"]
[WhiteElo "2338"]
[BlackElo "2152"]
[TimeControl "180+1"]
[EndTime "11:06:24 PDT"]
[Termination "Caisachess won by resignation"]

1. e4 {[%clk 0:03:00.9]} 1... e5 {[%clk 0:02:59.2]} 2. Nf3 {[%clk 0:03:00.3]}
2... Nc6 {[%clk 0:02:59.2]} 3. Bc4 {[%clk 0:02:59.7]} 3... Bc5 {[%clk
0:02:56.8]} 4. d3 {[%clk 0:02:59.6]} 4... Nf6 {[%clk 0:02:56.5]} 5. c3 {[%clk
0:02:58.6]} 5... a6 {[%clk 0:02:54.7]} 6. Bb3 {[%clk 0:02:55]} 6... Ba7 {[%clk
0:02:54.6]} 7. Bd2 {[%clk 0:02:53.7]} 7... O-O {[%clk 0:02:53.8]} 8. O-O {[%clk
0:02:51.9]} 8... d5 {[%clk 0:02:52.9]} 9. Qe2 {[%clk 0:02:51.9]} 9... Re8 {[%clk
0:02:36.2]} 10. Bg5 {[%clk 0:02:50.5]} 10... dxe4 {[%clk 0:02:33.9]} 11. dxe4
{[%clk 0:02:50.2]} 11... Qe7 {[%clk 0:02:31.5]} 12. Nbd2 {[%clk 0:02:49.6]}
12... Be6 {[%clk 0:02:30.4]} 13. Rad1 {[%clk 0:02:45.2]} 13... Rad8 {[%clk
0:02:26]} 14. h3 {[%clk 0:02:44.3]} 14... h6 {[%clk 0:02:24.1]} 15. Be3 {[%clk
0:02:42.8]} 15... Bxb3 {[%clk 0:02:08.7]} 16. axb3 {[%clk 0:02:32.5]} 16... Nh5
{[%clk 0:02:04.9]} 17. g3 {[%clk 0:02:02.7]} 17... Qf6 {[%clk 0:01:36.2]} 18.
Bxa7 {[%clk 0:01:52.9]} 18... Nxa7 {[%clk 0:01:35.2]} 19. Nh4 {[%clk 0:01:52.8]}
19... g6 {[%clk 0:01:26.4]} 20. Qe3 {[%clk 0:01:46.2]} 20... Nc6 {[%clk
0:01:24.9]} 21. Qxh6 {[%clk 0:01:44.9]} 21... Rd3 {[%clk 0:00:49.3]} 22. Nc4
{[%clk 0:01:26.1]} 22... Red8 {[%clk 0:00:40.9]} 23. Rxd3 {[%clk 0:00:57.3]}
23... Rxd3 {[%clk 0:00:39.4]} 24. Ne3 {[%clk 0:00:53.1]} 24... Rd2 {[%clk
0:00:20.9]} 25. Ng4 {[%clk 0:00:50.2]} 25... Qg7 {[%clk 0:00:20.5]} 26. Qxd2
{[%clk 0:00:49.3]} 1-0

[Event "*** Titled Tuesday Blitz"]
[Site "Chess.com"]
[Date "2020.05.05"]
[Round "6"]
[White "Indianlad"]
[Black "Baby_Legs"]
[Result "1-0"]
[WhiteElo "2912"]
[BlackElo "2682"]
[TimeControl "180+1"]
[EndTime "11:06:27 PDT"]
[Termination "Indianlad won by resignation"]

1. d4 {[%clk 0:02:58.4]} 1... d5 {[%clk 0:02:59.8]} 2. c4 {[%clk 0:02:59]} 2...
e6 {[%clk 0:03:00.2]} 3. Nf3 {[%clk 0:02:58.5]} 3... Nf6 {[%clk 0:03:00.4]} 4.
g3 {[%clk 0:02:58.6]} 4... Bb4+ {[%clk 0:03:00.1]} 5. Bd2 {[%clk 0:02:59.2]}
5... Bd6 {[%clk 0:03:00.6]} 6. Bg2 {[%clk 0:02:59.5]} 6... O-O {[%clk
0:03:00.2]} 7. Qb3 {[%clk 0:02:59.3]} 7... c6 {[%clk 0:02:57.6]} 8. O-O {[%clk
0:02:59]} 8... Ne4 {[%clk 0:02:57.8]} 9. Bb4 {[%clk 0:02:58.4]} 9... Bxb4 {[%clk
0:02:51.8]} 10. Qxb4 {[%clk 0:02:59.3]} 10... a5 {[%clk 0:02:51.7]} 11. Qb3
{[%clk 0:02:58.7]} 11... Nd7 {[%clk 0:02:40.2]} 12. Nbd2 {[%clk 0:02:57.7]}
12... f5 {[%clk 0:02:38.8]} 13. Qc2 {[%clk 0:02:58.1]} 13... b6 {[%clk
0:02:38.5]} 14. cxd5 {[%clk 0:02:55.3]} 14... cxd5 {[%clk 0:02:38.1]} 15. Qc6
{[%clk 0:02:55.3]} 15... Ra7 {[%clk 0:02:24.3]} 16. Qxe6+ {[%clk 0:02:54.8]}
16... Kh8 {[%clk 0:02:24.9]} 17. Qxd5 {[%clk 0:02:55.3]} 17... Bb7 {[%clk
0:02:24.6]} 18. Qb3 {[%clk 0:02:51.6]} 18... Ndf6 {[%clk 0:02:24.6]} 19. Nxe4
{[%clk 0:02:47.8]} 19... fxe4 {[%clk 0:02:24]} 20. Ne5 {[%clk 0:02:46.9]} 20...
Bd5 {[%clk 0:02:07.1]} 21. Qe3 {[%clk 0:02:45.9]} 21... Qd6 {[%clk 0:02:03.4]}
22. Rfc1 {[%clk 0:02:42.9]} 22... Qe6 {[%clk 0:01:51.8]} 23. a3 {[%clk
0:02:38.9]} 23... Ng4 {[%clk 0:01:51.6]} 24. Nxg4 {[%clk 0:02:38.3]} 24... Qxg4
{[%clk 0:01:52.5]} 25. Rc2 {[%clk 0:01:50.9]} 25... Raf7 {[%clk 0:01:52]} 26.
Rf1 {[%clk 0:01:49.5]} 26... h6 {[%clk 0:01:51.2]} 27. h3 {[%clk 0:01:49.7]}
27... Qg6 {[%clk 0:01:50.7]} 28. Kh2 {[%clk 0:01:30.1]} 28... Qd6 {[%clk
0:01:49.2]} 29. Kg1 {[%clk 0:01:21.6]} 29... Qg6 {[%clk 0:01:48.8]} 30. Rc3
{[%clk 0:01:17.1]} 30... Rf6 {[%clk 0:01:45.8]} 31. g4 {[%clk 0:01:11.7]} 31...
Qf7 {[%clk 0:01:44.2]} 32. Qg3 {[%clk 0:01:10.8]} 32... Rf4 {[%clk 0:01:39]} 33.
e3 {[%clk 0:01:04.2]} 33... Rf6 {[%clk 0:01:38.3]} 34. Rc7 {[%clk 0:01:00.8]}
34... Qg6 {[%clk 0:01:37.8]} 35. Qe5 {[%clk 0:01:00.9]} 35... Ba8 {[%clk
0:01:34.9]} 36. Qh5 {[%clk 0:00:54.9]} 36... Qxh5 {[%clk 0:01:25.2]} 37. gxh5
{[%clk 0:00:55.8]} 37... Rf5 {[%clk 0:01:26.1]} 38. Rfc1 {[%clk 0:00:55.9]}
38... Rxf2 {[%clk 0:01:23.9]} 39. Rc8 {[%clk 0:00:56.4]} 39... Bd5 {[%clk
0:01:21.5]} 40. Rxf8+ {[%clk 0:00:54.8]} 40... Rxf8 {[%clk 0:01:22.4]} 41. Rf1
{[%clk 0:00:54.9]} 41... Rc8 {[%clk 0:01:21.1]} 42. Rf5 {[%clk 0:00:54.6]} 42...
Rc1+ {[%clk 0:01:17.5]} 43. Kh2 {[%clk 0:00:54.1]} 43... Bc6 {[%clk 0:01:17]}
44. d5 {[%clk 0:00:54.1]} 44... Bd7 {[%clk 0:01:12.4]} 45. Rf8+ {[%clk
0:00:54.2]} 45... Kh7 {[%clk 0:01:12.7]} 46. Bxe4+ {[%clk 0:00:54.9]} 1-0